[Event "Titled Tuesday Blitz May 25 2021"]
[White "Turzo, Attila"]
[Black "Araujo Sanchez, Josue"]
[WhiteFideId "704954"]
[BlackFideId "6416896"]
[WhiteElo "2484"]
[BlackElo "2140"]
[Result "0-1"]
[Round "02"]
[TimeControl "180+1"]
[Date "2021.05.25"]
[WhiteClock "0:00:29"]
[BlackClock "0:00:51"]

1. d4 {[%clk 0:02:45]}  Nf6 {[%clk 0:02:59]} 2. Nf3 {[%clk 0:02:44]}  e6 {[%clk 0:03:00]} 3. Bf4 {[%clk 0:02:43]}  b6 {[%clk 0:02:59]} 4. e3 {[%clk 0:02:42]}  Bb7 {[%clk 0:02:59]} 5. Nbd2 {[%clk 0:02:40]}  Be7 {[%clk 0:02:57]} 6. h3 {[%clk 0:02:40]}  O-O {[%clk 0:02:57]} 7. Bd3 {[%clk 0:02:39]}  d6 {[%clk 0:02:58]} 8. a4 {[%clk 0:02:35]}  Nbd7 {[%clk 0:02:59]} 9. a5 {[%clk 0:02:35]}  a6 {[%clk 0:02:56]} 10. axb6 {[%clk 0:02:34]}  cxb6 {[%clk 0:02:57]} 11. c4 {[%clk 0:02:31]}  e5 {[%clk 0:02:55]} 12. dxe5 {[%clk 0:02:21]}  dxe5 {[%clk 0:02:54]} 13. Bxe5 {[%clk 0:02:21]}  Nxe5 {[%clk 0:02:46]} 14. Nxe5 {[%clk 0:02:22]}  Bb4 {[%clk 0:02:32]} 15. Be2 {[%clk 0:01:59]}  Bxg2 {[%clk 0:02:27]} 16. Rg1 {[%clk 0:01:57]}  Bxh3 {[%clk 0:02:24]} 17. Qc2 {[%clk 0:01:52]}  Re8 {[%clk 0:02:19]} 18. Nf3 {[%clk 0:01:33]}  Ne4 {[%clk 0:02:06]} 19. Bd3 {[%clk 0:01:16]}  Nxd2 {[%clk 0:01:55]} 20. Nxd2 {[%clk 0:01:15]}  Qh4 {[%clk 0:01:01]} 21. O-O-O {[%clk 0:01:09]}  Qxf2 {[%clk 0:00:58]} 22. Bxh7+ {[%clk 0:00:56]}  Kf8 {[%clk 0:00:57]} 23. Qb3 {[%clk 0:00:41]}  Bxd2+ {[%clk 0:00:51]} 24. Kb1 {[%clk 0:00:40]}  Bf5+ {[%clk 0:00:47]} 25. Bxf5 {[%clk 0:00:39]}  Qxf5+ {[%clk 0:00:48]} 26. Ka2 {[%clk 0:00:37]}  Rad8 {[%clk 0:00:44]} 27. Qa3+ {[%clk 0:00:34]}  Qc5 {[%clk 0:00:40]} 28. Qxc5+ {[%clk 0:00:32]}  bxc5 {[%clk 0:00:39]} 29. Rg5 {[%clk 0:00:33]}  Bxe3 {[%clk 0:00:39]} 30. Rxd8 {[%clk 0:00:31]}  Rxd8 {[%clk 0:00:38]} 31. Re5 {[%clk 0:00:32]}  Bd4 {[%clk 0:00:38]} 32. Rf5 {[%clk 0:00:33]}  Ke7 {[%clk 0:00:37]} 33. Kb3 {[%clk 0:00:32]}  Rd6 {[%clk 0:00:37]} 34. Kc2 {[%clk 0:00:32]}  g6 {[%clk 0:00:36]} 35. Rg5 {[%clk 0:00:32]}  f5 {[%clk 0:00:37]} 36. b3 {[%clk 0:00:31]}  Kf6 {[%clk 0:00:38]} 37. Rg2 {[%clk 0:00:31]}  Re6 {[%clk 0:00:39]} 38. Kd3 {[%clk 0:00:31]}  g5 {[%clk 0:00:39]} 39. Rg3 {[%clk 0:00:31]}  f4 {[%clk 0:00:39]} 40. Rg4 {[%clk 0:00:31]}  Re3+ {[%clk 0:00:40]} 41. Kc2 {[%clk 0:00:31]}  Rc3+ {[%clk 0:00:40]} 42. Kd2 {[%clk 0:00:28]}  Rg3 {[%clk 0:00:41]} 43. Rxg3 {[%clk 0:00:27]}  fxg3 {[%clk 0:00:42]} 44. Ke2 {[%clk 0:00:27]}  g2 {[%clk 0:00:42]} 45. b4 {[%clk 0:00:28]}  g1=Q {[%clk 0:00:43]} 46. bxc5 {[%clk 0:00:29]}  Qe3+ {[%clk 0:00:44]} 47. Kd1 {[%clk 0:00:28]}  Qc3 {[%clk 0:00:45]} 48. c6 {[%clk 0:00:28]}  Qxc4 {[%clk 0:00:46]} 49. c7 {[%clk 0:00:28]}  Qxc7 {[%clk 0:00:46]} 50. Ke2 {[%clk 0:00:28]}  Qf4 {[%clk 0:00:47]} 51. Kd3 {[%clk 0:00:29]}  Qe3+ {[%clk 0:00:48]} 52. Kc4 {[%clk 0:00:29]}  Qc3+ {[%clk 0:00:49]} 53. Kd5 {[%clk 0:00:30]}  Qc5+ {[%clk 0:00:50]} 54. Ke4 {[%clk 0:00:30]}  a5 {[%clk 0:00:48]} 55. Kd3 {[%clk 0:00:30]}  a4 {[%clk 0:00:49]} 56. Ke4 {[%clk 0:00:31]}  a3 {[%clk 0:00:50]} 57. Kd3 {[%clk 0:00:31]}  a2 {[%clk 0:00:50]} 58. Ke4 {[%clk 0:00:32]}  a1=Q {[%clk 0:00:51]} 59. Kd3 {[%clk 0:00:32]}  Qb1+ {[%clk 0:00:51]} 60. Ke2 {[%clk 0:00:31]}  Qe5+ {[%clk 0:00:52]} 61. Kf3 {[%clk 0:00:29]}  Qbe4# {[%clk 0:00:51]} 0-1


[Site "https://www.chess.com"]

[Event "Titled Tuesday Blitz May 25 2021"]
[White "Urazayev, Arystanbek"]
[Black "Grunberg, Mihai-Lucian"]
[WhiteFideId "13709810"]
[BlackFideId "1204149"]
[WhiteElo "2321"]
[BlackElo "2364"]
[Result "1-0"]
[Round "02"]
[TimeControl "180+1"]
[Date "2021.05.25"]
[WhiteClock "0:01:03"]
[BlackClock "0:00:41"]

1. d4 {[%clk 0:02:59]}  f5 {[%clk 0:02:59]} 2. Nf3 {[%clk 0:02:58]}  Nf6 {[%clk 0:02:58]} 3. Bf4 {[%clk 0:02:58]}  g6 {[%clk 0:02:58]} 4. e3 {[%clk 0:02:58]}  Bg7 {[%clk 0:02:59]} 5. Nbd2 {[%clk 0:02:58]}  O-O {[%clk 0:02:59]} 6. h3 {[%clk 0:02:55]}  c6 {[%clk 0:02:58]} 7. Bd3 {[%clk 0:02:53]}  d5 {[%clk 0:02:57]} 8. O-O {[%clk 0:02:52]}  Ne4 {[%clk 0:02:55]} 9. c4 {[%clk 0:02:50]}  Nd7 {[%clk 0:02:54]} 10. Qb3 {[%clk 0:02:40]}  e6 {[%clk 0:02:52]} 11. Rac1 {[%clk 0:02:35]}  Qe7 {[%clk 0:02:47]} 12. Rfd1 {[%clk 0:02:28]}  a5 {[%clk 0:02:46]} 13. Qa3 {[%clk 0:02:14]}  Qxa3 {[%clk 0:02:45]} 14. bxa3 {[%clk 0:02:14]}  h6 {[%clk 0:02:33]} 15. c5 {[%clk 0:02:12]}  g5 {[%clk 0:02:32]} 16. Bc7 {[%clk 0:02:12]}  Ndf6 {[%clk 0:02:25]} 17. a4 {[%clk 0:02:11]}  Ne8 {[%clk 0:02:24]} 18. Bb6 {[%clk 0:02:09]}  g4 {[%clk 0:02:14]} 19. hxg4 {[%clk 0:02:09]}  fxg4 {[%clk 0:02:13]} 20. Bxe4 {[%clk 0:02:09]}  dxe4 {[%clk 0:02:09]} 21. Ne5 {[%clk 0:02:10]}  Nf6 {[%clk 0:02:05]} 22. Ndc4 {[%clk 0:02:08]}  h5 {[%clk 0:02:01]} 23. g3 {[%clk 0:01:58]}  Nh7 {[%clk 0:01:54]} 24. Kg2 {[%clk 0:01:52]}  Ng5 {[%clk 0:01:51]} 25. Rh1 {[%clk 0:01:48]}  Nh3 {[%clk 0:01:50]} 26. Rc2 {[%clk 0:01:48]}  Rf5 {[%clk 0:01:39]} 27. Nd6 {[%clk 0:01:39]}  Rf8 {[%clk 0:01:26]} 28. Nxe4 {[%clk 0:01:38]}  Bxe5 {[%clk 0:01:23]} 29. dxe5 {[%clk 0:01:37]}  Bd7 {[%clk 0:01:24]} 30. Nf6+ {[%clk 0:01:35]}  Rxf6 {[%clk 0:01:24]} 31. exf6 {[%clk 0:01:36]}  Kf7 {[%clk 0:01:24]} 32. Rd2 {[%clk 0:01:29]}  Be8 {[%clk 0:01:22]} 33. Rd8 {[%clk 0:01:25]}  Rxd8 {[%clk 0:01:20]} 34. Bxd8 {[%clk 0:01:26]}  e5 {[%clk 0:01:21]} 35. Rb1 {[%clk 0:01:24]}  Ke6 {[%clk 0:01:18]} 36. Rxb7 {[%clk 0:01:23]}  Bg6 {[%clk 0:01:19]} 37. f7 {[%clk 0:01:16]}  Bxf7 {[%clk 0:01:16]} 38. Bxa5 {[%clk 0:01:15]}  Bg6 {[%clk 0:01:14]} 39. Bb6 {[%clk 0:01:11]}  Be4+ {[%clk 0:01:09]} 40. Kf1 {[%clk 0:01:11]}  Ng5 {[%clk 0:01:08]} 41. a5 {[%clk 0:01:11]}  Nf3 {[%clk 0:01:07]} 42. Ke2 {[%clk 0:01:09]}  Bd5 {[%clk 0:00:58]} 43. Ra7 {[%clk 0:01:06]}  Bc4+ {[%clk 0:00:58]} 44. Kd1 {[%clk 0:01:05]}  h4 {[%clk 0:00:48]} 45. gxh4 {[%clk 0:01:05]}  Nxh4 {[%clk 0:00:48]} 46. a6 {[%clk 0:01:05]}  Nf5 {[%clk 0:00:44]} 47. Ra8 {[%clk 0:01:04]}  g3 {[%clk 0:00:44]} 48. fxg3 {[%clk 0:01:04]}  Nxe3+ {[%clk 0:00:44]} 49. Kc1 {[%clk 0:01:03]}  Kf5 {[%clk 0:00:42]} 50. a7 {[%clk 0:01:04]}  Ke4 {[%clk 0:00:41]} 51. Re8 {[%clk 0:01:03]} 1-0


[Site "https://www.chess.com"]

[Event "Titled Tuesday Blitz May 25 2021"]
[White "Vaishali, Rameshbabu"]
[Black "Ognean, Mihnea-Ionut"]
[WhiteFideId "5091756"]
[BlackFideId "1232347"]
[WhiteElo "2313"]
[BlackElo "2012"]
[Result "0-1"]
[Round "02"]
[TimeControl "180+1"]
[Date "2021.05.25"]
[WhiteClock "0:00:01"]
[BlackClock "0:00:13"]

1. Nf3 {[%clk 0:02:59]}  d5 {[%clk 0:02:59]} 2. g3 {[%clk 0:02:58]}  Nd7 {[%clk 0:02:57]} 3. d4 {[%clk 0:02:56]}  Nb6 {[%clk 0:02:58]} 4. Nbd2 {[%clk 0:02:53]}  Nf6 {[%clk 0:02:57]} 5. Bg2 {[%clk 0:02:49]}  Bf5 {[%clk 0:02:55]} 6. O-O {[%clk 0:02:39]}  h6 {[%clk 0:02:54]} 7. c4 {[%clk 0:02:33]}  e6 {[%clk 0:02:52]} 8. Qb3 {[%clk 0:02:29]}  dxc4 {[%clk 0:02:35]} 9. Nxc4 {[%clk 0:02:30]}  Be4 {[%clk 0:02:33]} 10. Ncd2 {[%clk 0:02:17]}  Bd5 {[%clk 0:02:26]} 11. Qc2 {[%clk 0:02:17]}  Bxf3 {[%clk 0:02:16]} 12. Nxf3 {[%clk 0:02:12]}  Be7 {[%clk 0:02:15]} 13. e4 {[%clk 0:01:59]}  O-O {[%clk 0:02:14]} 14. Be3 {[%clk 0:01:56]}  c6 {[%clk 0:02:09]} 15. Rac1 {[%clk 0:01:50]}  a5 {[%clk 0:02:09]} 16. a4 {[%clk 0:01:46]}  Bb4 {[%clk 0:01:56]} 17. b3 {[%clk 0:01:43]}  Qe7 {[%clk 0:01:56]} 18. Rfd1 {[%clk 0:01:42]}  Nbd7 {[%clk 0:01:52]} 19. h3 {[%clk 0:01:16]}  Rfe8 {[%clk 0:01:51]} 20. g4 {[%clk 0:01:15]}  Rad8 {[%clk 0:01:45]} 21. g5 {[%clk 0:01:13]}  hxg5 {[%clk 0:01:41]} 22. Bxg5 {[%clk 0:01:14]}  e5 {[%clk 0:01:41]} 23. Nh4 {[%clk 0:01:01]}  g6 {[%clk 0:01:24]} 24. f4 {[%clk 0:00:59]}  exf4 {[%clk 0:01:11]} 25. e5 {[%clk 0:00:58]}  Nxe5 {[%clk 0:01:11]} 26. dxe5 {[%clk 0:00:57]}  Rxd1+ {[%clk 0:01:12]} 27. Rxd1 {[%clk 0:00:47]}  Qxe5 {[%clk 0:01:12]} 28. Nf3 {[%clk 0:00:45]}  Qe3+ {[%clk 0:01:07]} 29. Kh2 {[%clk 0:00:45]}  Ne4 {[%clk 0:01:07]} 30. Rd3 {[%clk 0:00:32]}  Qc5 {[%clk 0:00:23]} 31. Qxc5 {[%clk 0:00:24]}  Nxc5 {[%clk 0:00:23]} 32. Rd1 {[%clk 0:00:24]}  Ne6 {[%clk 0:00:24]} 33. Bf6 {[%clk 0:00:23]}  Be7 {[%clk 0:00:23]} 34. Bc3 {[%clk 0:00:21]}  g5 {[%clk 0:00:22]} 35. Bf1 {[%clk 0:00:18]}  Bd8 {[%clk 0:00:20]} 36. Ne5 {[%clk 0:00:16]}  f6 {[%clk 0:00:19]} 37. Ng4 {[%clk 0:00:15]}  Kf7 {[%clk 0:00:19]} 38. Bd3 {[%clk 0:00:15]}  Bc7 {[%clk 0:00:18]} 39. Bf5 {[%clk 0:00:13]}  Rd8 {[%clk 0:00:18]} 40. Re1 {[%clk 0:00:09]}  f3+ {[%clk 0:00:17]} 41. Kg1 {[%clk 0:00:09]}  Nf4 {[%clk 0:00:18]} 42. Nxf6 {[%clk 0:00:04]}  Ne2+ {[%clk 0:00:17]} 43. Kf2 {[%clk 0:00:04]}  Nxc3 {[%clk 0:00:18]} 44. Nh5 {[%clk 0:00:04]}  Nd5 {[%clk 0:00:18]} 45. Kxf3 {[%clk 0:00:04]}  Rf8 {[%clk 0:00:15]} 46. Kg4 {[%clk 0:00:04]}  Bf4 {[%clk 0:00:15]} 47. Nxf4 {[%clk 0:00:03]}  gxf4 {[%clk 0:00:16]} 48. Be6+ {[%clk 0:00:03]}  Kf6 {[%clk 0:00:16]} 49. Re4 {[%clk 0:00:02]}  Rd8 {[%clk 0:00:12]} 50. Bxd5 {[%clk 0:00:01]}  cxd5 {[%clk 0:00:13]} 51. Rxf4+ {[%clk 0:00:01]}  Ke5 {[%clk 0:00:13]} 0-1


[Site "https://www.chess.com"]

[Event "Titled Tuesday Blitz May 25 2021"]
[White "Vlassov, Nikolai"]
[Black "Tari, Aryan"]
[WhiteFideId "4103360"]
[BlackFideId "1510045"]
[WhiteElo "2407"]
[BlackElo "2656"]
[Result "0-1"]
[Round "02"]
[TimeControl "180+1"]
[Date "2021.05.25"]
[WhiteClock "0:00:18"]
[BlackClock "0:00:07"]

1. e4 {[%clk 0:03:00]}  c5 {[%clk 0:02:57]} 2. c3 {[%clk 0:03:00]}  Nf6 {[%clk 0:02:49]} 3. e5 {[%clk 0:03:00]}  Nd5 {[%clk 0:02:50]} 4. d4 {[%clk 0:03:01]}  cxd4 {[%clk 0:02:49]} 5. cxd4 {[%clk 0:03:01]}  d6 {[%clk 0:02:50]} 6. Bc4 {[%clk 0:03:01]}  Nb6 {[%clk 0:02:49]} 7. Bb3 {[%clk 0:03:01]}  Nc6 {[%clk 0:02:42]} 8. e6 {[%clk 0:03:00]}  fxe6 {[%clk 0:02:37]} 9. Nf3 {[%clk 0:03:00]}  g6 {[%clk 0:02:35]} 10. h4 {[%clk 0:03:00]}  Bg7 {[%clk 0:01:14]} 11. h5 {[%clk 0:03:00]}  Nd5 {[%clk 0:01:10]} 12. Nc3 {[%clk 0:02:44]}  Qb6 {[%clk 0:01:04]} 13. hxg6 {[%clk 0:02:31]}  hxg6 {[%clk 0:01:02]} 14. Rxh8+ {[%clk 0:02:30]}  Bxh8 {[%clk 0:01:03]} 15. Be3 {[%clk 0:02:02]}  Nxe3 {[%clk 0:00:56]} 16. fxe3 {[%clk 0:02:01]}  Bd7 {[%clk 0:00:57]} 17. Qd3 {[%clk 0:01:58]}  O-O-O {[%clk 0:00:55]} 18. Qxg6 {[%clk 0:01:56]}  e5 {[%clk 0:00:53]} 19. d5 {[%clk 0:01:30]}  Qxe3+ {[%clk 0:00:51]} 20. Kf1 {[%clk 0:01:26]}  Nd4 {[%clk 0:00:48]} 21. Re1 {[%clk 0:01:24]}  Qf4 {[%clk 0:00:39]} 22. Qe4 {[%clk 0:01:18]}  Qg3 {[%clk 0:00:29]} 23. Qh4 {[%clk 0:01:09]}  Qg6 {[%clk 0:00:23]} 24. Ne4 {[%clk 0:01:03]}  Rg8 {[%clk 0:00:18]} 25. Qf2 {[%clk 0:00:49]}  Bb5+ {[%clk 0:00:15]} 26. Kg1 {[%clk 0:00:49]}  Rf8 {[%clk 0:00:14]} 27. Re3 {[%clk 0:00:45]}  Bg7 {[%clk 0:00:12]} 28. Qg3 {[%clk 0:00:41]}  Qxg3 {[%clk 0:00:12]} 29. Nxg3 {[%clk 0:00:41]}  Nxb3 {[%clk 0:00:13]} 30. axb3 {[%clk 0:00:40]}  Bh6 {[%clk 0:00:13]} 31. Rc3+ {[%clk 0:00:40]}  Kd7 {[%clk 0:00:13]} 32. Ne4 {[%clk 0:00:37]}  a5 {[%clk 0:00:13]} 33. b4 {[%clk 0:00:32]}  axb4 {[%clk 0:00:11]} 34. Rb3 {[%clk 0:00:33]}  Bc4 {[%clk 0:00:11]} 35. Rxb4 {[%clk 0:00:33]}  Bxd5 {[%clk 0:00:12]} 36. Nc3 {[%clk 0:00:33]}  Bc6 {[%clk 0:00:13]} 37. Rh4 {[%clk 0:00:32]}  Be3+ {[%clk 0:00:13]} 38. Kh2 {[%clk 0:00:32]}  b5 {[%clk 0:00:12]} 39. Ne4 {[%clk 0:00:28]}  b4 {[%clk 0:00:12]} 40. b3 {[%clk 0:00:24]}  Bf4+ {[%clk 0:00:12]} 41. Rxf4 {[%clk 0:00:24]}  Rxf4 {[%clk 0:00:12]} 42. Nf2 {[%clk 0:00:24]}  Bxf3 {[%clk 0:00:12]} 43. gxf3 {[%clk 0:00:24]}  Rxf3 {[%clk 0:00:12]} 44. Ne4 {[%clk 0:00:24]}  Rxb3 {[%clk 0:00:13]} 45. Kg2 {[%clk 0:00:17]}  Rd3 {[%clk 0:00:12]} 46. Kf2 {[%clk 0:00:16]}  b3 {[%clk 0:00:12]} 47. Ke2 {[%clk 0:00:16]}  b2 {[%clk 0:00:12]} 48. Kxd3 {[%clk 0:00:16]}  b1=Q+ {[%clk 0:00:09]} 49. Ke3 {[%clk 0:00:17]}  d5 {[%clk 0:00:09]} 50. Nc5+ {[%clk 0:00:17]}  Kd6 {[%clk 0:00:08]} 51. Nd3 {[%clk 0:00:18]}  d4+ {[%clk 0:00:08]} 52. Ke4 {[%clk 0:00:18]}  Ke6 {[%clk 0:00:07]} 0-1


[Site "https://www.chess.com"]

[Event "Titled Tuesday Blitz May 25 2021"]
[White "Vovk, Orest"]
[Black "Leitao, Rafael"]
[WhiteFideId "14113490"]
[BlackFideId "2101246"]
[WhiteElo "2203"]
[BlackElo "2609"]
[Result "0-1"]
[Round "02"]
[TimeControl "180+1"]
[Date "2021.05.25"]
[WhiteClock "0:00:03"]
[BlackClock "0:00:25"]

1. h3 {[%clk 0:03:00]}  g6 {[%clk 0:02:58]} 2. g4 {[%clk 0:02:59]}  Bg7 {[%clk 0:02:57]} 3. Bg2 {[%clk 0:02:58]}  d5 {[%clk 0:02:56]} 4. d4 {[%clk 0:02:53]}  h5 {[%clk 0:02:52]} 5. g5 {[%clk 0:02:51]}  c5 {[%clk 0:02:47]} 6. c3 {[%clk 0:02:46]}  cxd4 {[%clk 0:02:45]} 7. cxd4 {[%clk 0:02:45]}  Nc6 {[%clk 0:02:46]} 8. Nf3 {[%clk 0:02:45]}  Bf5 {[%clk 0:02:45]} 9. O-O {[%clk 0:02:35]}  e6 {[%clk 0:02:45]} 10. Bf4 {[%clk 0:02:33]}  Be4 {[%clk 0:02:41]} 11. e3 {[%clk 0:02:29]}  Nge7 {[%clk 0:02:40]} 12. Nc3 {[%clk 0:02:29]}  Bxf3 {[%clk 0:02:39]} 13. Qxf3 {[%clk 0:02:27]}  Nf5 {[%clk 0:02:37]} 14. Rac1 {[%clk 0:02:21]}  Nh4 {[%clk 0:02:30]} 15. Qe2 {[%clk 0:02:10]}  Nxg2 {[%clk 0:02:28]} 16. Kxg2 {[%clk 0:02:11]}  O-O {[%clk 0:02:25]} 17. h4 {[%clk 0:02:04]}  a6 {[%clk 0:02:19]} 18. Na4 {[%clk 0:02:00]}  e5 {[%clk 0:01:54]} 19. dxe5 {[%clk 0:01:58]}  Nxe5 {[%clk 0:01:54]} 20. Bxe5 {[%clk 0:01:56]}  Bxe5 {[%clk 0:01:53]} 21. f4 {[%clk 0:01:56]}  Bg7 {[%clk 0:01:49]} 22. f5 {[%clk 0:01:48]}  Re8 {[%clk 0:01:42]} 23. Qd3 {[%clk 0:01:31]}  Re4 {[%clk 0:01:38]} 24. Rf4 {[%clk 0:01:20]}  Qe8 {[%clk 0:01:25]} 25. Qxd5 {[%clk 0:00:50]}  Rxf4 {[%clk 0:01:19]} 26. exf4 {[%clk 0:00:51]}  Qxa4 {[%clk 0:01:17]} 27. fxg6 {[%clk 0:00:48]}  Qxf4 {[%clk 0:01:16]} 28. Qxf7+ {[%clk 0:00:43]}  Qxf7 {[%clk 0:01:14]} 29. gxf7+ {[%clk 0:00:44]}  Kxf7 {[%clk 0:01:09]} 30. Rc7+ {[%clk 0:00:44]}  Kg6 {[%clk 0:01:10]} 31. Rxb7 {[%clk 0:00:45]}  Be5 {[%clk 0:01:06]} 32. Rb6+ {[%clk 0:00:38]}  Kf5 {[%clk 0:01:05]} 33. Kf3 {[%clk 0:00:38]}  Rd8 {[%clk 0:00:53]} 34. Rxa6 {[%clk 0:00:37]}  Rd3+ {[%clk 0:00:53]} 35. Ke2 {[%clk 0:00:35]}  Rh3 {[%clk 0:00:52]} 36. b4 {[%clk 0:00:29]}  Rxh4 {[%clk 0:00:52]} 37. b5 {[%clk 0:00:29]}  Rb4 {[%clk 0:00:51]} 38. a4 {[%clk 0:00:25]}  Kxg5 {[%clk 0:00:48]} 39. b6 {[%clk 0:00:23]}  h4 {[%clk 0:00:48]} 40. Ra5 {[%clk 0:00:14]}  Kf4 {[%clk 0:00:48]} 41. Rb5 {[%clk 0:00:14]}  Re4+ {[%clk 0:00:47]} 42. Kf1 {[%clk 0:00:13]}  h3 {[%clk 0:00:44]} 43. b7 {[%clk 0:00:13]}  h2 {[%clk 0:00:40]} 44. Kg2 {[%clk 0:00:13]}  Re2+ {[%clk 0:00:40]} 45. Kh1 {[%clk 0:00:13]}  Kg3 {[%clk 0:00:34]} 46. Rb3+ {[%clk 0:00:13]}  Kf2 {[%clk 0:00:34]} 47. Rb1 {[%clk 0:00:11]}  Bb8 {[%clk 0:00:32]} 48. a5 {[%clk 0:00:09]}  Re5 {[%clk 0:00:29]} 49. a6 {[%clk 0:00:05]}  Rg5 {[%clk 0:00:27]} 50. Rb2+ {[%clk 0:00:02]}  Kf3 {[%clk 0:00:27]} 51. Rb3+ {[%clk 0:00:03]}  Ke4 {[%clk 0:00:25]} 52. Rb4+ {[%clk 0:00:03]}  Kd3 {[%clk 0:00:25]} 0-1


[Site "https://www.chess.com"]

[Event "Titled Tuesday Blitz May 25 2021"]
[White "Zhukova, Natalia"]
[Black "Nazaretyan, Tigran"]
[WhiteFideId "14101513"]
[BlackFideId "24162345"]
[WhiteElo "2369"]
[BlackElo "2247"]
[Result "0-1"]
[Round "02"]
[TimeControl "180+1"]
[Date "2021.05.25"]
[WhiteClock "0:00:05"]
[BlackClock "0:00:24"]

1. c4 {[%clk 0:03:00]}  Nf6 {[%clk 0:02:58]} 2. Nc3 {[%clk 0:03:00]}  g6 {[%clk 0:02:58]} 3. e4 {[%clk 0:03:01]}  d6 {[%clk 0:02:57]} 4. d4 {[%clk 0:03:01]}  Bg7 {[%clk 0:02:57]} 5. f4 {[%clk 0:03:01]}  O-O {[%clk 0:02:56]} 6. Nf3 {[%clk 0:03:02]}  c5 {[%clk 0:02:57]} 7. d5 {[%clk 0:03:02]}  e6 {[%clk 0:02:57]} 8. dxe6 {[%clk 0:03:03]}  Bxe6 {[%clk 0:02:49]} 9. Bd3 {[%clk 0:03:03]}  Nc6 {[%clk 0:02:49]} 10. f5 {[%clk 0:03:03]}  Bd7 {[%clk 0:02:42]} 11. O-O {[%clk 0:03:03]}  a6 {[%clk 0:02:36]} 12. Bg5 {[%clk 0:02:47]}  h6 {[%clk 0:02:36]} 13. e5 {[%clk 0:02:43]}  dxe5 {[%clk 0:02:17]} 14. Bxf6 {[%clk 0:02:43]}  Qxf6 {[%clk 0:02:09]} 15. Nd5 {[%clk 0:02:07]}  Qd8 {[%clk 0:01:58]} 16. fxg6 {[%clk 0:02:04]}  f5 {[%clk 0:01:56]} 17. Bc2 {[%clk 0:01:34]}  e4 {[%clk 0:01:52]} 18. Nd2 {[%clk 0:01:33]}  Qg5 {[%clk 0:01:36]} 19. Nf4 {[%clk 0:01:20]}  Rad8 {[%clk 0:01:31]} 20. Qh5 {[%clk 0:01:15]}  Bxb2 {[%clk 0:01:16]} 21. Rab1 {[%clk 0:01:12]}  Bd4+ {[%clk 0:01:13]} 22. Kh1 {[%clk 0:01:12]}  Nb4 {[%clk 0:01:11]} 23. Bxe4 {[%clk 0:00:31]}  fxe4 {[%clk 0:01:05]} 24. Nxe4 {[%clk 0:00:32]}  Qxh5 {[%clk 0:01:01]} 25. Nxh5 {[%clk 0:00:33]}  Rxf1+ {[%clk 0:00:44]} 26. Rxf1 {[%clk 0:00:34]}  Rf8 {[%clk 0:00:44]} 27. Re1 {[%clk 0:00:19]}  Bf5 {[%clk 0:00:39]} 28. g7 {[%clk 0:00:15]}  Rd8 {[%clk 0:00:28]} 29. h3 {[%clk 0:00:14]}  Bxe4 {[%clk 0:00:27]} 30. Rxe4 {[%clk 0:00:14]}  Bxg7 {[%clk 0:00:28]} 31. Re7 {[%clk 0:00:13]}  Rd1+ {[%clk 0:00:26]} 32. Kh2 {[%clk 0:00:12]}  Bf8 {[%clk 0:00:25]} 33. Rxb7 {[%clk 0:00:11]}  Bd6+ {[%clk 0:00:25]} 34. g3 {[%clk 0:00:11]}  Rd2+ {[%clk 0:00:25]} 35. Kh1 {[%clk 0:00:10]}  Rc2 {[%clk 0:00:26]} 36. Rd7 {[%clk 0:00:09]}  Be5 {[%clk 0:00:25]} 37. Rd5 {[%clk 0:00:09]}  Bd4 {[%clk 0:00:25]} 38. Rd6 {[%clk 0:00:07]}  Rxc4 {[%clk 0:00:24]} 39. Rxh6 {[%clk 0:00:07]}  Rc1+ {[%clk 0:00:23]} 40. Kg2 {[%clk 0:00:06]}  Nxa2 {[%clk 0:00:24]} 41. Rxa6 {[%clk 0:00:06]}  Nb4 {[%clk 0:00:24]} 42. Kf3 {[%clk 0:00:05]}  Nxa6 {[%clk 0:00:24]} 0-1


[Site "https://www.chess.com"]